bitfinex/quotes_SOLUSD_20220228
["timestamp","ask_amount","ask_price","bid_price","bid_amount"]
[1646077434731,62.39,96.357,96.257,15.5388]
[1646077434931,2.32095536,96.356,96.257,15.5388]
[1646077435129,4.24358265,96.356,96.257,15.5388]
[1646077435331,2.32095536,96.356,96.257,15.5388]
[1646077435731,1.92262729,96.355,96.257,15.5388]
[1646077439135,1.87409577,96.353,96.257,15.5388]
[1646077439335,62.39,96.349,96.234,24.9369]
[1646077439538,2.23323036,96.348,96.255,15.4719]
[1646077439736,4.15585765,96.348,96.255,15.4719]
[1646077440140,2.23323036,96.348,96.255,15.4719]
[1646077440338,1.92262729,96.347,96.255,15.4719]
[1646077440737,1.92262729,96.347,96.234,24.9369]
[1646077440937,1.92262729,96.347,96.235,104.0]
[1646077441141,1.92262729,96.347,96.252,15.2835]
[1646077441551,1.92262729,96.347,96.252,119.2835]
[1646077441954,1.92262729,96.347,96.253,23.8401]
[1646077443755,2.23323036,96.348,96.253,23.8401]
[1646077443958,2.23323036,96.348,96.254,104.0]
[1646077444156,2.23323036,96.348,96.272,110.0]
[1646077444356,2.23323036,96.348,96.272,112.74678921]
[1646077444758,2.23323036,96.348,96.273,2.74678921]
[1646077444958,2.23323036,96.348,96.272,6.0]
[1646077445556,2.23323036,96.348,96.272,8.74678921]
[1646077445763,2.74678921,96.386,96.272,8.74678921]
[1646077445958,39.6116,96.41,96.273,104.0]
[1646077446156,2.1403098,96.358,96.273,104.0]
[1646077446556,60.26395735,96.357,96.273,104.0]
[1646077446757,60.26395735,96.357,96.275,104.0]
[1646077446956,2.23535824,96.356,96.291,104.0]
[1646077448257,1.75507912,96.387,96.291,104.0]
[1646077448458,1.75507912,96.387,96.293,104.0]
[1646077449069,2.14745231,96.402,96.293,106.74678921]
[1646077449266,2.33524151,96.401,96.293,106.74678921]
[1646077449467,1.85528423,96.407,96.293,106.74678921]
[1646077449766,46.01473807,96.4,96.293,106.74678921]
[1646077449973,1.79739938,96.399,96.293,104.0]
[1646077450167,26.51235007,96.399,96.293,104.0]
[1646077450374,48.11874056,96.398,96.293,104.0]
[1646077450567,2.326987,96.397,96.293,104.0]
[1646077451169,24.6701,96.396,96.293,104.0]
[1646077451368,2.32213273,96.395,96.293,104.0]
[1646077451569,2.32213273,96.395,96.294,2.74678921]
[1646077454576,2.00494271,96.421,96.296,104.0]
[1646077454779,15.0,96.46,96.31,15.0]
[1646077454978,1.73828576,96.459,96.331,0.37]
[1646077455182,2.16598474,96.468,96.341,104.0]
[1646077455377,49.6075,96.469,96.34,15.0]
[1646077455378,52.42913116,96.467,96.343,104.0]
[1646077455578,2.13840909,96.466,96.342,74.52797915]
[1646077455779,2.13840909,96.466,96.344,46.7654349]
[1646077456180,2.13840909,96.466,96.345,150.7654349]
[1646077456679,2.13840909,96.466,96.347,104.0]
[1646077456879,2.13840909,96.466,96.36,15.0]
[1646077457881,64.52840909,96.466,96.36,30.6544]
[1646077458085,62.39,96.464,96.36,15.6544]
[1646077458283,15.0,96.46,96.36,15.6544]
[1646077458483,1.88615091,96.459,96.36,15.6544]
[1646077458683,1.88615091,96.459,96.342,46.3971]
[1646077459382,19.91322866,96.459,96.342,46.3971]
[1646077459583,2.38106138,96.458,96.342,46.3971]
[1646077459987,62.39,96.456,96.34,15.0]
[1646077460188,1.83579401,96.455,96.322,2.74678921]
[1646077460383,15.0,96.44,96.322,15.3659]
[1646077460587,59.70575871,96.438,96.322,15.3659]
[1646077460882,2.24148039,96.437,96.322,15.3659]
[1646077461084,64.63148039,96.437,96.32,15.0]
[1646077461285,62.39,96.435,96.32,15.0]
[1646077461486,2.08467564,96.434,96.32,15.0]
[1646077461684,15.0,96.43,96.32,15.0]
[1646077461883,2.33743474,96.429,96.32,40.51339326]
[1646077463289,2.33743474,96.429,96.32,25.51339326]
[1646077464686,64.72743474,96.429,96.32,25.51339326]
[1646077464887,2.2382535,96.428,96.32,25.51339326]
[1646077465087,62.39,96.426,96.32,25.51339326]
[1646077465291,2.14789141,96.425,96.32,25.51339326]
[1646077466288,62.39,96.419,96.302,23.6592]
[1646077466493,15.0,96.42,96.3,40.51339326]
[1646077466494,62.39,96.417,96.3,40.51339326]
[1646077466695,1.94295887,96.416,96.3,40.51339326]
[1646077467194,2.38136026,96.414,96.29,15.2786]
[1646077467392,62.39,96.399,96.29,15.2786]
[1646077467610,62.39,96.397,96.29,15.2786]
[1646077467818,1.96931676,96.396,96.29,15.2786]
[1646077468016,1.96931676,96.396,96.272,6.0]
[1646077468215,62.39,96.394,96.272,6.0]
[1646077468417,44.85614401,96.378,96.272,21.3575]
[1646077468617,85.6999,96.377,96.272,21.3575]
[1646077468818,1.88533534,96.376,96.272,21.3575]
[1646077469219,1.88533534,96.376,96.273,104.0]
[1646077469623,1.88533534,96.376,96.272,21.3575]
[1646077469821,1.88533534,96.376,96.274,25.4355926]
[1646077470724,1.88533534,96.376,96.272,6.0]
[1646077470925,1.88533534,96.376,96.262,60.20281986]
[1646077470926,1.88533534,96.376,96.262,45.7902]
[1646077471124,1.88533534,96.376,96.249,128.1123]
[1646077471326,1.88533534,96.376,96.25,6.0]
[1646077471527,1.88533534,96.376,96.25,31.4355926]
[1646077472128,1.88533534,96.376,96.251,129.4355926]
[1646077472527,1.88533534,96.376,96.253,104.0]
[1646077472930,1.88533534,96.376,96.255,104.0]
[1646077473327,1.88533534,96.376,96.254,66.30023646]
[1646077473328,1.88533534,96.376,96.256,2.74678921]
[1646077473533,62.39,96.375,96.26,15.0]
[1646077473730,166.39,96.369,96.24,25.56065144]
[1646077473929,19.0218561,96.375,96.249,15.4123]
[1646077473930,62.39,96.359,96.249,15.4123]
[1646077474130,62.39,96.349,96.249,15.4123]
[1646077474330,2.15678618,96.348,96.249,15.4123]
[1646077474533,2.15678618,96.348,96.226,24.811]
[1646077474734,2.00526688,96.345,96.227,6.0]
[1646077474933,62.39,96.339,96.227,29.4009294]
[1646077475135,62.39,96.337,96.228,23.4009294]
[1646077475337,2.19067886,96.336,96.228,23.4009294]
[1646077475938,62.39,96.334,96.226,24.811]
[1646077476133,2.29609108,96.333,96.227,6.0]
[1646077476934,2.29609108,96.333,96.226,24.811]
[1646077477139,62.39,96.329,96.226,24.811]
[1646077477336,2.07483586,96.328,96.226,24.811]
[1646077477741,23.5754,96.327,96.226,24.811]
[1646077477941,62.39,96.326,96.226,48.2119294]
[1646077478142,2.22029512,96.325,96.226,48.2119294]
[1646077478962,2.22029512,96.325,96.226,23.4009294]
[1646077480361,2.22029512,96.325,96.212,46.1503294]
[1646077480563,2.22029512,96.325,96.213,6.0]
[1646077480764,2.22029512,96.325,96.212,22.7494]
[1646077481762,2.22029512,96.325,96.213,104.0]
[1646077481964,2.22029512,96.325,96.214,6.0]
[1646077482768,2.22029512,96.325,96.215,104.0]
[1646077483767,2.22029512,96.325,96.216,4.154]
[1646077484170,2.22029512,96.325,96.214,6.0]
[1646077484368,2.22029512,96.325,96.212,22.7494]
[1646077484769,2.22029512,96.325,96.213,6.0]
[1646077486074,2.22029512,96.325,96.214,104.0]
[1646077486771,2.22029512,96.325,96.213,6.0]
[1646077486971,2.22029512,96.325,96.213,110.0]
[1646077487172,2.22029512,96.325,96.213,6.0]
[1646077487372,2.22029512,96.325,96.214,4.155]
[1646077487874,2.22029512,96.325,96.214,108.155]
[1646077488072,2.22029512,96.325,96.215,2.74678921]
[1646077488874,2.22029512,96.325,96.214,108.155]
[1646077490274,2.22029512,96.325,96.214,4.155]
[1646077490474,62.39,96.322,96.214,4.155]
[1646077490674,64.13007481,96.319,96.212,22.7494]
[1646077490874,62.39,96.319,96.212,22.7494]
[1646077491077,62.39,96.317,96.212,22.7494]
[1646077491281,2.3012157,96.316,96.212,22.7494]
[1646077493177,2.3012157,96.316,96.213,104.0]
[1646077493578,2.3012157,96.316,96.214,6.0]
[1646077494079,2.3012157,96.316,96.212,22.7494]
[1646077494279,62.39,96.313,96.177,20.68716132]
[1646077494480,62.39,96.299,96.184,23.2732]
[1646077494879,62.39,96.297,96.184,23.2732]
[1646077495080,2.07339233,96.296,96.184,23.2732]
[1646077495280,62.39,96.294,96.184,23.2732]
[1646077495480,62.39,96.292,96.184,23.2732]
[1646077495679,64.21713359,96.279,96.184,23.2732]
[1646077495880,62.39,96.277,96.185,4.156]
[1646077496081,1.90826676,96.276,96.185,4.156]
[1646077496980,1.90826676,96.276,96.186,6.0]
[1646077497181,1.90826676,96.276,96.187,4.156]
[1646077497380,1.90826676,96.276,96.188,6.0]
[1646077498080,1.90826676,96.276,96.185,4.156]
[1646077498482,1.90826676,96.276,96.171,22.7214]
[1646077498683,1.90826676,96.276,96.172,6.0]
[1646077499282,1.90826676,96.276,96.171,22.7214]
[1646077501287,1.90826676,96.276,96.172,104.0]
[1646077501492,1.90826676,96.276,96.174,104.0]
[1646077501889,1.90826676,96.276,96.176,104.0]
[1646077502087,1.90826676,96.276,96.175,24.45369]
[1646077502088,1.90826676,96.276,96.175,20.29769]
[1646077502286,1.90826676,96.276,96.176,23.1174]
[1646077504587,1.90826676,96.276,96.176,22.1174]
[1646077505390,1.90826676,96.276,96.159,15.9067]
[1646077505690,1.90826676,96.276,96.16,6.0]
[1646077506291,62.39,96.275,96.16,6.0]
[1646077506590,2.25365241,96.274,96.16,6.0]
[1646077506791,15.0,96.26,96.16,6.0]
[1646077506990,62.39,96.257,96.16,6.0]
[1646077507291,2.34139957,96.256,96.161,104.0]
[1646077507492,2.34139957,96.256,96.162,4.157]
[1646077508093,2.34139957,96.256,96.16,6.0]
[1646077508493,62.39,96.249,96.16,6.0]
[1646077508693,2.25326409,96.248,96.161,104.0]
[1646077508898,24.341,96.248,96.161,104.0]
[1646077509094,1.78146195,96.247,96.16,6.0]
[1646077510294,1.78146195,96.247,96.161,104.0]
[1646077510495,24.341,96.248,96.161,104.0]
[1646077510697,24.341,96.248,96.162,4.157]
[1646077514114,24.341,96.248,96.161,104.0]
[1646077514717,1.81988135,96.257,96.161,104.0]
[1646077514914,2.07257846,96.272,96.163,104.0]
[1646077515116,24.4804,96.289,96.163,104.0]
[1646077515317,1.99937232,96.288,96.164,2.74678921]
[1646077515514,1.99937232,96.288,96.165,104.0]
[1646077515716,24.4804,96.289,96.181,104.0]
[1646077515915,56.28580459,96.288,96.183,104.0]
[1646077516115,62.39,96.287,96.183,104.0]
[1646077516415,1.84183037,96.286,96.183,104.0]
[1646077516617,53.89344739,96.288,96.185,104.0]
[1646077516816,23.4686,96.307,96.201,104.0]
[1646077516817,2.04306215,96.306,96.201,104.0]
[1646077517017,1.88459067,96.306,96.211,104.0]
[1646077517419,23.4686,96.307,96.211,104.0]
[1646077517617,23.4686,96.307,96.212,2.74678921]
[1646077517817,58.9152923,96.306,96.213,23.322]
[1646077518018,1.80930773,96.305,96.213,23.322]
[1646077518819,64.19930773,96.305,96.213,23.322]
[1646077519020,2.14720711,96.304,96.214,104.0]
[1646077519620,2.14720711,96.304,96.213,23.322]
[1646077519822,62.39,96.299,96.213,23.322]
[1646077520019,2.08378052,96.298,96.213,23.322]
[1646077520220,2.08378052,96.298,96.188,104.0]
[1646077521021,2.08378052,96.298,96.191,104.0]
[1646077524224,62.39,96.296,96.19,15.0]
[1646077524424,62.39,96.294,96.187,22.6456]
[1646077524725,62.39,96.277,96.187,22.6456]
[1646077524926,62.39,96.275,96.187,22.6456]
[1646077525124,2.27095084,96.274,96.187,22.6456]
[1646077525325,2.27095084,96.274,96.188,104.0]
[1646077525525,2.27095084,96.274,96.191,104.0]
[1646077525724,1.73803741,96.299,96.191,104.0]
[1646077525926,23.7173,96.307,96.191,104.0]
[1646077526127,2.35140689,96.306,96.192,2.74678921]
[1646077526326,62.39,96.306,96.191,104.0]
[1646077526526,62.39,96.303,96.19,15.0]
[1646077526926,2.03544696,96.302,96.19,15.0]
[1646077527329,2.03544696,96.302,96.191,104.0]
[1646077528529,2.03544696,96.302,96.192,2.74678921]
[1646077531934,83.24130213,96.334,96.192,2.74678921]
[1646077532135,2.32671818,96.328,96.193,104.0]
[1646077532334,2.32671818,96.328,96.194,2.24815038]
[1646077532533,2.32671818,96.328,96.201,104.0]
[1646077532737,2.32671818,96.328,96.211,104.0]
[1646077532935,46.44275107,96.327,96.213,104.0]
[1646077533134,2.02954378,96.326,96.213,104.0]
[1646077533335,2.02954378,96.326,96.214,2.74678921]
[1646077534836,2.02954378,96.326,96.215,4.154]
[1646077535037,2.02954378,96.326,96.231,104.0]
[1646077535838,2.02954378,96.326,96.233,104.0]
[1646077540768,2.02954378,96.326,96.233,108.154]
[1646077540967,2.02954378,96.326,96.233,104.0]
[1646077542166,64.41954378,96.326,96.233,104.0]
[1646077542367,2.14288534,96.325,96.233,104.0]
[1646077542767,1.98866959,96.323,96.232,23.8258]
[1646077544370,1.98866959,96.323,96.233,104.0]
[1646077548772,1.98866959,96.323,96.234,6.0]
[1646077550978,1.98866959,96.323,96.232,23.8258]
[1646077551981,1.98866959,96.323,96.233,104.0]
[1646077552683,1.98866959,96.323,96.234,6.0]
[1646077553483,1.98866959,96.323,96.235,104.0]
[1646077560490,1.98866959,96.323,96.236,2.74678921]
[1646077563695,1.98866959,96.323,96.24,15.0]
[1646077563894,1.98866959,96.323,96.241,104.0]
[1646077564195,1.98866959,96.323,96.241,106.74678921]
[1646077564393,1.98866959,96.323,96.242,2.74678921]
[1646077565192,1.98866959,96.323,96.244,104.0]
[1646077565594,1.98866959,96.323,96.245,2.74678921]
[1646077565994,2.28815549,96.355,96.261,104.0]
[1646077566194,22.7547,96.354,96.263,104.0]
[1646077566393,2.13533889,96.353,96.263,104.0]
[1646077566594,2.13533889,96.353,96.264,2.74678921]
[1646077566796,47.86410798,96.352,96.264,2.74678921]
[1646077566994,2.23601638,96.351,96.264,2.74678921]
[1646077568097,2.23601638,96.351,96.266,104.0]
[1646077568296,2.23601638,96.351,96.271,104.0]
[1646077568696,2.23601638,96.351,96.272,2.74678921]
[1646077569097,2.23601638,96.351,96.273,104.0]
[1646077569496,2.23601638,96.351,96.274,2.74678921]
[1646077570300,2.23601638,96.351,96.276,104.0]
[1646077570799,2.23601638,96.351,96.277,2.74678921]
[1646077573802,2.23601638,96.351,96.274,104.0]
[1646077578105,2.23601638,96.351,96.274,106.74678921]
[1646077580428,2.23601638,96.351,96.274,104.0]
[1646077586038,2.23601638,96.351,96.275,2.74678921]
[1646077586238,2.23601638,96.351,96.281,104.0]
[1646077586639,2.23601638,96.351,96.282,2.74678921]
[1646077587039,45.48833495,96.35,96.282,2.74678921]
[1646077587342,2.1781563,96.349,96.282,2.74678921]
[1646077588845,2.1781563,96.349,96.276,13.07855403]
[1646077591145,2.1781563,96.349,96.277,104.0]
[1646077591547,2.1781563,96.349,96.277,106.74678921]
[1646077591748,2.1781563,96.349,96.278,2.74678921]
[1646077595448,1.78720259,96.365,96.281,104.0]
[1646077595847,1.78720259,96.365,96.283,104.0]
[1646077596048,2.33786928,96.363,96.283,104.0]
[1646077596248,2.33786928,96.363,96.285,104.0]
[1646077596648,2.33786928,96.363,96.287,104.0]
[1646077596848,1.75835261,96.361,96.291,104.0]
[1646077597348,1.75835261,96.361,96.292,2.74678921]
[1646077598149,1.75835261,96.361,96.29,15.0]
[1646077598549,1.75835261,96.361,96.284,23.4423]
[1646077599149,1.25835261,96.361,96.284,23.4423]
[1646077599349,1.25835261,96.361,96.277,2.74678921]
[1646077599552,1.25835261,96.361,96.274,104.0]
[1646077601152,1.25835261,96.361,96.264,2.74678921]
[1646077601353,15.0,96.36,96.245,2.74678921]
[1646077601552,2.18244356,96.358,96.24,15.0]
[1646077601756,2.18244356,96.358,96.224,24.1022]
[1646077601952,2.18244356,96.358,96.224,39.4088]
[1646077602153,2.11591935,96.355,96.224,39.4088]
[1646077602353,2.11591935,96.355,96.225,104.0]
[1646077602554,62.39,96.353,96.225,104.0]
[1646077602756,62.39,96.339,96.225,104.0]
[1646077602956,62.39,96.337,96.227,104.0]
[1646077603156,2.10993243,96.336,96.227,104.0]
[1646077603356,62.39,96.334,96.227,104.0]
[1646077603556,2.10825198,96.333,96.227,104.0]
[1646077603961,2.10825198,96.333,96.225,104.0]
[1646077604161,4.03087927,96.333,96.225,104.0]
[1646077604458,4.03087927,96.333,96.227,104.0]
[1646077605163,15.0,96.33,96.226,6.0]
[1646077605358,2.04170682,96.329,96.224,39.4088]
[1646077605758,3.96433411,96.329,96.224,39.4088]
[1646077605959,3.96433411,96.329,96.225,6.0]
[1646077606162,3.96433411,96.329,96.227,104.0]
[1646077607283,1.92636352,96.328,96.228,6.0]
[1646077607683,1.92636352,96.328,96.226,12.96104363]
[1646077607983,2.07736897,96.325,96.226,12.96104363]
[1646077608784,2.07736897,96.325,96.227,104.0]
[1646077608985,2.07736897,96.325,96.226,12.96104363]
[1646077608986,2.07736897,96.325,96.229,104.0]
[1646077609186,2.07736897,96.325,96.241,104.0]
[1646077610693,2.07736897,96.325,96.24,15.0]
[1646077611089,2.07736897,96.325,96.23,104.0]
[1646077611291,2.07736897,96.325,96.229,12.96104363]
[1646077611489,2.07736897,96.325,96.23,15.0]
[1646077611888,2.07736897,96.325,96.231,104.0]
[1646077614398,2.07736897,96.325,96.233,104.0]
[1646077614797,2.07736897,96.325,96.235,104.0]
[1646077614997,2.07736897,96.325,96.237,104.0]
[1646077615206,2.07736897,96.325,96.241,104.0]
[1646077615698,2.07736897,96.325,96.243,104.0]
[1646077616098,2.07736897,96.325,96.245,104.0]
[1646077616298,2.07736897,96.325,96.261,104.0]
[1646077618504,2.07736897,96.325,96.261,116.93504363]
[1646077618700,2.07736897,96.325,96.261,132.30674363]
[1646077620003,22.915,96.335,96.262,2.74678921]
[1646077620406,22.915,96.335,96.263,104.0]
[1646077620802,51.01541473,96.334,96.264,2.74678921]
[1646077621204,22.915,96.335,96.264,2.74678921]
[1646077621406,26.72732806,96.362,96.266,104.0]
[1646077621606,1.85662684,96.361,96.266,104.0]
[1646077621806,1.85662684,96.361,96.28,15.0]
[1646077622407,2.13646127,96.359,96.281,104.0]
[1646077622606,2.13646127,96.359,96.28,15.0]
[1646077623209,2.00764483,96.358,96.265,36.45041758]
[1646077623408,2.00764483,96.358,96.265,22.7231]
[1646077623809,2.00764483,96.358,96.27,15.0]
[1646077624509,2.00764483,96.358,96.271,106.74678921]
[1646077624710,2.00764483,96.358,96.271,115.80678921]
[1646077624907,2.00764483,96.358,96.272,2.74678921]
[1646077625130,24.1787,96.359,96.273,104.0]
[1646077625309,24.1787,96.359,96.273,124.53222005]
[1646077625513,24.1787,96.359,96.274,2.74678921]
[1646077625910,24.1787,96.359,96.276,104.0]
[1646077626116,24.1787,96.359,96.291,104.0]
[1646077626513,2.00709769,96.358,96.292,2.74678921]
[1646077626912,2.00709769,96.358,96.29,15.0]
[1646077627316,2.00709769,96.358,96.275,6.0]
[1646077627513,2.00709769,96.358,96.276,23.6654]
[1646077627715,1.75406031,96.357,96.275,6.0]
[1646077628514,2.74678921,96.356,96.275,6.0]
[1646077628818,65.13678921,96.356,96.275,6.0]
[1646077629014,1.85712716,96.355,96.275,6.0]
[1646077630717,2.74678921,96.354,96.249,23.4518]
[1646077630917,62.39,96.349,96.249,23.4518]
[1646077631214,1.68936286,96.348,96.227,12.60065091]
[1646077631425,1.87364702,96.346,96.225,24.2989]
[1646077631616,4.154,96.345,96.221,2.74678921]
[1646077631816,4.154,96.345,96.209,23.595]
[1646077631817,62.39,96.329,96.209,23.595]
[1646077632016,62.39,96.327,96.21,23.2453]
[1646077632216,1.88846147,96.326,96.21,23.2453]
[1646077632416,1.88846147,96.326,96.207,2.74678921]
[1646077632640,1.88846147,96.326,96.194,2.74678921]
[1646077632641,69.29078921,96.325,96.194,2.74678921]
[1646077632842,2.21510698,96.324,96.181,33.13287096]
[1646077633040,62.39,96.309,96.181,33.13287096]
[1646077633240,15.0,96.31,96.177,23.2453]
[1646077633241,62.39,96.307,96.177,23.2453]
[1646077633440,1.95955554,96.306,96.177,23.2453]
[1646077633839,4.70634475,96.306,96.177,23.2453]
[1646077634043,1.95955554,96.306,96.177,23.2453]
[1646077634440,2.74678921,96.305,96.181,104.0]
[1646077635041,2.74678921,96.305,96.194,15.213]
[1646077636142,62.39,96.304,96.194,15.213]
[1646077636342,15.0,96.29,96.194,15.213]
[1646077636544,62.39,96.287,96.194,15.213]
[1646077636742,1.64483628,96.286,96.194,15.213]
[1646077637543,1.64483628,96.286,96.195,4.155]
[1646077637744,1.7475804,96.283,96.195,4.155]
[1646077638546,1.7475804,96.283,96.194,15.213]
[1646077640447,1.7475804,96.283,96.195,104.0]
[1646077641447,1.7475804,96.283,96.194,104.0]
[1646077641846,1.7475804,96.283,96.192,15.2058]
[1646077643150,1.7475804,96.283,96.193,128.0727]
[1646077643350,1.7475804,96.283,96.195,104.0]
[1646077645450,24.2436,96.285,96.197,104.0]
[1646077645650,24.2436,96.285,96.21,15.0]
[1646077645850,24.2436,96.285,96.211,104.0]
[1646077646050,24.2436,96.285,96.212,4.155]
[1646077647451,1.77304499,96.284,96.212,4.155]
[1646077647652,1.77304499,96.284,96.21,15.0]
[1646077647851,1.77304499,96.284,96.211,104.0]
[1646077648253,1.77304499,96.284,96.21,15.0]
[1646077648450,1.77304499,96.284,96.211,4.155]
[1646077648852,1.77304499,96.284,96.211,108.155]
[1646077649759,1.77304499,96.284,96.211,4.155]
[1646077650854,64.16304499,96.284,96.211,4.155]
[1646077651154,1.67543186,96.283,96.199,4.155]
[1646077651353,1.67543186,96.283,96.192,15.2058]
[1646077651555,1.67543186,96.283,96.171,4.156]
[1646077651754,62.39,96.279,96.171,28.8912]
[1646077651955,1.88732072,96.278,96.172,104.0]
[1646077652155,1.88732072,96.278,96.173,4.156]
[1646077652357,62.39,96.276,96.173,4.156]
[1646077652555,2.09867058,96.275,96.173,4.156]
[1646077652955,1.92262729,96.274,96.173,4.156]
[1646077653356,62.39,96.269,96.173,4.156]
[1646077653557,2.16873845,96.268,96.173,4.156]
[1646077654258,2.16873845,96.268,96.172,104.0]
[1646077655257,2.16873845,96.268,96.174,104.0]
[1646077655658,2.16873845,96.268,96.171,24.7352]
[1646077655860,2.16873845,96.268,96.155,104.0]
[1646077656058,62.39,96.266,96.162,4.157]
[1646077656259,21.41635336,96.267,96.157,104.0]
[1646077656260,62.39,96.264,96.157,104.0]
[1646077656458,25.29720543,96.265,96.156,22.5612]
[1646077656459,62.39,96.259,96.156,22.5612]
[1646077656660,62.39,96.257,96.156,22.5612]
[1646077656958,2.0330486,96.256,96.157,110.0]
[1646077657357,2.0330486,96.256,96.157,10.157]
[1646077657561,2.74678921,96.255,96.157,10.157]
[1646077657758,1.93354056,96.249,96.157,10.157]
[1646077657958,1.78449318,96.247,96.158,104.0]
[1646077659459,1.78449318,96.247,96.159,4.157]
[1646077660261,1.78449318,96.247,96.161,104.0]
[1646077660459,1.78449318,96.247,96.162,4.157]
[1646077665361,48.6749,96.248,96.162,4.157]
[1646077671069,1.7456429,96.247,96.162,4.157]
[1646077671269,1.7456429,96.247,96.158,104.0]
[1646077671470,1.7456429,96.247,96.159,4.157]
[1646077672480,48.6749,96.248,96.159,4.157]
[1646077672672,48.6749,96.248,96.161,104.0]
[1646077672875,48.6749,96.248,96.162,4.157]
[1646077673674,48.6749,96.248,96.163,104.0]
[1646077674475,2.01435909,96.247,96.162,4.157]
[1646077675774,3.93698638,96.247,96.162,4.157]
[1646077675975,2.01435909,96.247,96.162,4.157]
[1646077679578,1.94698157,96.246,96.162,4.157]
[1646077685286,3.86960886,96.246,96.162,4.157]
[1646077685690,1.94698157,96.246,96.162,4.157]
[1646077687287,1.92262729,96.245,96.162,4.157]
[1646077687889,64.31262729,96.245,96.162,4.157]
[1646077688092,62.39,96.243,96.162,4.157]
[1646077688293,45.77024713,96.244,96.162,4.157]
[1646077688294,62.39,96.229,96.162,4.157]
[1646077688492,62.39,96.227,96.162,4.157]
[1646077688909,1.87041877,96.226,96.162,4.157]
[1646077689110,3.79304606,96.226,96.162,4.157]
[1646077689310,1.87041877,96.226,96.162,4.157]
[1646077689712,1.92262729,96.225,96.162,4.157]
[1646077689912,62.39,96.209,96.108,24.5036]
[1646077690113,1.65365948,96.208,96.103,15.9489]
[1646077690511,1.97737621,96.204,96.103,15.9489]
[1646077690711,22.92773858,96.207,96.103,15.9489]
[1646077690712,166.39,96.187,96.103,15.9489]
[1646077690914,166.39,96.179,96.036,24.5036]
[1646077691111,1.90846063,96.176,96.036,24.5036]
[1646077691313,2.03346094,96.168,96.036,24.5036]
[1646077691511,62.39,96.157,96.036,24.5036]
[1646077691713,1.86172764,96.156,96.036,24.5036]
[1646077691912,1.86172764,96.156,96.037,6.0]
[1646077692113,1.86172764,96.156,96.038,104.0]
[1646077692314,1.87713808,96.153,96.037,6.0]
[1646077692515,15.0,96.15,96.038,20.99559726]
[1646077692720,2.25718048,96.149,96.038,20.99559726]
[1646077692915,2.25718048,96.149,96.039,104.0]
[1646077693522,2.25718048,96.149,96.038,104.0]
[1646077694118,64.64718048,96.149,96.037,6.0]
[1646077694318,2.24560912,96.148,96.037,6.0]
[1646077694719,1.67000107,96.145,96.037,6.0]
[1646077694918,15.0,96.14,96.037,6.0]
[1646077695120,62.39,96.139,96.037,6.0]
[1646077695317,1.93216488,96.138,96.037,6.0]
[1646077697520,1.93216488,96.138,96.038,104.0]
[1646077699123,1.93216488,96.138,96.039,2.74678921]
[1646077699322,1.93216488,96.138,96.039,11.47678921]
[1646077699523,1.93216488,96.138,96.04,119.0]
[1646077707335,64.32216488,96.138,96.037,6.0]
[1646077707536,1.8145824,96.137,96.037,6.0]
[1646077707736,3.73720969,96.137,96.037,6.0]
[1646077707939,1.8145824,96.137,96.037,6.0]
[1646077708138,1.92262729,96.136,96.037,6.0]
[1646077708540,1.73720969,96.137,96.037,6.0]
[1646077711541,166.39,96.136,95.98,104.0]
[1646077711843,24.69498105,96.135,96.009,15.6506]
[1646077712041,1.74989273,96.133,95.99,15.0]
[1646077712240,166.39,96.119,95.985,45.40692666]
[1646077712439,166.39,96.117,95.985,45.40692666]